[Event "Titled Tuesday Blitz November 29 Late 2022"]
[White "Khandelwal, Ankush"]
[Black "Rodriguez Santiago, Jaime"]
[WhiteFideId "413470"]
[BlackFideId "3100898"]
[WhiteElo "2271"]
[BlackElo "2025"]
[Result "1-0"]
[Round "09"]
[TimeControl "180+1"]
[Date "2022.11.30"]
[WhiteClock "0:00:17"]
[BlackClock "0:00:17"]

1. e4 {[%clk 0:03:00]}  c6 {[%clk 0:02:59]} 2. d4 {[%clk 0:03:00]}  d5 {[%clk 0:02:59]} 3. e5 {[%clk 0:03:01]}  Bf5 {[%clk 0:02:58]} 4. h4 {[%clk 0:03:02]}  h5 {[%clk 0:02:57]} 5. Bd3 {[%clk 0:03:02]}  Bxd3 {[%clk 0:02:56]} 6. Qxd3 {[%clk 0:03:03]}  Qa5+ {[%clk 0:02:55]} 7. Nd2 {[%clk 0:02:37]}  e6 {[%clk 0:02:51]} 8. Nf3 {[%clk 0:02:34]}  Nh6 {[%clk 0:02:46]} 9. O-O {[%clk 0:02:34]}  Nf5 {[%clk 0:02:41]} 10. Nb3 {[%clk 0:02:32]}  Qa6 {[%clk 0:02:40]} 11. Qd1 {[%clk 0:02:32]}  Be7 {[%clk 0:02:33]} 12. g3 {[%clk 0:02:27]}  Nd7 {[%clk 0:02:16]} 13. Bg5 {[%clk 0:02:19]}  f6 {[%clk 0:01:59]} 14. exf6 {[%clk 0:02:14]}  gxf6 {[%clk 0:01:58]} 15. Bf4 {[%clk 0:02:13]}  c5 {[%clk 0:01:47]} 16. Re1 {[%clk 0:01:34]}  cxd4 {[%clk 0:01:39]} 17. Nfxd4 {[%clk 0:01:35]}  Nxd4 {[%clk 0:01:38]} 18. Nxd4 {[%clk 0:01:34]}  e5 {[%clk 0:01:33]} 19. Nf5 {[%clk 0:01:34]}  Qc6 {[%clk 0:00:52]} 20. Bh6 {[%clk 0:01:13]}  Bc5 {[%clk 0:00:40]} 21. Qxh5+ {[%clk 0:00:50]}  Kd8 {[%clk 0:00:40]} 22. c3 {[%clk 0:00:44]}  Kc7 {[%clk 0:00:38]} 23. b4 {[%clk 0:00:44]}  Bb6 {[%clk 0:00:37]} 24. Qf7 {[%clk 0:00:29]}  Rag8 {[%clk 0:00:35]} 25. Rad1 {[%clk 0:00:27]}  Kb8 {[%clk 0:00:33]} 26. Rxd5 {[%clk 0:00:26]}  Nf8 {[%clk 0:00:20]} 27. Red1 {[%clk 0:00:20]}  Ng6 {[%clk 0:00:20]} 28. Bg7 {[%clk 0:00:18]}  Nf4 {[%clk 0:00:18]} 29. gxf4 {[%clk 0:00:17]}  Rxh4 {[%clk 0:00:18]} 30. Qxg8+ {[%clk 0:00:17]}  Qc8 {[%clk 0:00:17]} 31. Rd8 {[%clk 0:00:16]}  Bxd8 {[%clk 0:00:17]} 32. Rxd8 {[%clk 0:00:17]}  Rg4+ {[%clk 0:00:17]} 33. Kf1 {[%clk 0:00:17]} 1-0


[Site "https://www.chess.com"]

[Event "Titled Tuesday Blitz November 29 Late 2022"]
[White "Kleiman, Jake"]
[Black "Tristan, Leonardo"]
[WhiteFideId "2020041"]
[BlackFideId "113816"]
[WhiteElo "2621"]
[BlackElo "2461"]
[Result "0-1"]
[Round "09"]
[TimeControl "180+1"]
[Date "2022.11.30"]
[WhiteClock "0:00:03"]
[BlackClock "0:00:33"]

1. e4 {[%clk 0:03:00]}  d5 {[%clk 0:03:00]} 2. exd5 {[%clk 0:03:00]}  Qxd5 {[%clk 0:03:01]} 3. Nc3 {[%clk 0:03:00]}  Qa5 {[%clk 0:03:01]} 4. d4 {[%clk 0:03:00]}  Nf6 {[%clk 0:03:01]} 5. Bc4 {[%clk 0:03:01]}  Bg4 {[%clk 0:03:01]} 6. f3 {[%clk 0:02:59]}  Bd7 {[%clk 0:03:00]} 7. Ne2 {[%clk 0:02:55]}  e6 {[%clk 0:03:00]} 8. Bd2 {[%clk 0:02:53]}  Qb6 {[%clk 0:03:00]} 9. Bb3 {[%clk 0:02:51]}  Be7 {[%clk 0:02:53]} 10. O-O {[%clk 0:02:50]}  O-O {[%clk 0:02:53]} 11. Kh1 {[%clk 0:02:49]}  c5 {[%clk 0:02:45]} 12. Be3 {[%clk 0:02:20]}  Qc7 {[%clk 0:02:28]} 13. Bf4 {[%clk 0:01:58]}  Bd6 {[%clk 0:02:27]} 14. Bxd6 {[%clk 0:01:57]}  Qxd6 {[%clk 0:02:28]} 15. d5 {[%clk 0:01:39]}  Qa6 {[%clk 0:01:49]} 16. dxe6 {[%clk 0:01:28]}  Bxe6 {[%clk 0:01:50]} 17. Bxe6 {[%clk 0:01:02]}  Qxe6 {[%clk 0:01:51]} 18. Nf4 {[%clk 0:01:02]}  Qe5 {[%clk 0:01:43]} 19. Nd3 {[%clk 0:00:55]}  Qh5 {[%clk 0:01:26]} 20. Ne4 {[%clk 0:00:41]}  Nxe4 {[%clk 0:01:20]} 21. fxe4 {[%clk 0:00:42]}  Qxd1 {[%clk 0:01:20]} 22. Raxd1 {[%clk 0:00:43]}  Na6 {[%clk 0:01:20]} 23. Nf4 {[%clk 0:00:35]}  c4 {[%clk 0:01:03]} 24. Rd5 {[%clk 0:00:25]}  Rfe8 {[%clk 0:00:59]} 25. e5 {[%clk 0:00:20]}  Nb4 {[%clk 0:00:49]} 26. Rb5 {[%clk 0:00:21]}  Nxc2 {[%clk 0:00:49]} 27. Rxb7 {[%clk 0:00:21]}  Rxe5 {[%clk 0:00:49]} 28. h3 {[%clk 0:00:18]}  h6 {[%clk 0:00:47]} 29. Rf3 {[%clk 0:00:14]}  a5 {[%clk 0:00:43]} 30. Kh2 {[%clk 0:00:14]}  Rd8 {[%clk 0:00:42]} 31. h4 {[%clk 0:00:12]}  Rd2 {[%clk 0:00:40]} 32. Nh3 {[%clk 0:00:07]}  Ree2 {[%clk 0:00:34]} 33. Rg3 {[%clk 0:00:03]}  Ne3 {[%clk 0:00:32]} 34. Nf4 {[%clk 0:00:04]}  Nf1+ {[%clk 0:00:32]} 35. Kh3 {[%clk 0:00:04]}  Nxg3 {[%clk 0:00:33]} 36. Nxe2 {[%clk 0:00:03]} 0-1


[Site "https://www.chess.com"]

[Event "Titled Tuesday Blitz November 29 Late 2022"]
[White "Koellner, Ruben Gideon"]
[Black "Papasimakopoulos, Alexandros"]
[WhiteFideId "12993093"]
[BlackFideId "4244125"]
[WhiteElo "2303"]
[BlackElo "2365"]
[Result "1-0"]
[Round "09"]
[TimeControl "180+1"]
[Date "2022.11.30"]
[WhiteClock "0:00:41"]
[BlackClock "0:01:32"]

1. d4 {[%clk 0:03:00]}  f5 {[%clk 0:02:53]} 2. Bg5 {[%clk 0:02:58]}  c6 {[%clk 0:02:52]} 3. e3 {[%clk 0:02:49]}  Qb6 {[%clk 0:02:53]} 4. Nd2 {[%clk 0:02:47]}  d5 {[%clk 0:02:45]} 5. c4 {[%clk 0:02:45]}  e6 {[%clk 0:02:44]} 6. Qb3 {[%clk 0:02:41]}  Nd7 {[%clk 0:02:38]} 7. c5 {[%clk 0:02:36]}  Qc7 {[%clk 0:02:34]} 8. f4 {[%clk 0:02:36]}  h6 {[%clk 0:02:31]} 9. Bh4 {[%clk 0:02:36]}  Ngf6 {[%clk 0:02:32]} 10. Bxf6 {[%clk 0:02:34]}  Nxf6 {[%clk 0:02:26]} 11. Qc2 {[%clk 0:02:31]}  b6 {[%clk 0:02:24]} 12. b4 {[%clk 0:02:27]}  a5 {[%clk 0:02:23]} 13. cxb6 {[%clk 0:02:20]}  Qxb6 {[%clk 0:02:22]} 14. bxa5 {[%clk 0:02:21]}  Rxa5 {[%clk 0:02:21]} 15. Ngf3 {[%clk 0:02:20]}  c5 {[%clk 0:02:20]} 16. Rb1 {[%clk 0:02:12]}  Qa7 {[%clk 0:02:16]} 17. Bb5+ {[%clk 0:02:12]}  Bd7 {[%clk 0:02:14]} 18. a4 {[%clk 0:01:59]}  c4 {[%clk 0:02:07]} 19. O-O {[%clk 0:01:51]}  Bd6 {[%clk 0:02:05]} 20. Ne5 {[%clk 0:01:50]}  Bxe5 {[%clk 0:01:54]} 21. fxe5 {[%clk 0:01:51]}  Bxb5 {[%clk 0:01:55]} 22. exf6 {[%clk 0:01:21]}  Bxa4 {[%clk 0:01:55]} 23. fxg7 {[%clk 0:01:22]}  Rg8 {[%clk 0:01:55]} 24. Qb2 {[%clk 0:01:14]}  Bb5 {[%clk 0:01:44]} 25. Ra1 {[%clk 0:00:58]}  Rxg7 {[%clk 0:01:43]} 26. Rxa5 {[%clk 0:00:53]}  Qxa5 {[%clk 0:01:43]} 27. Ra1 {[%clk 0:00:53]}  c3 {[%clk 0:01:42]} 28. Rxa5 {[%clk 0:00:51]}  cxb2 {[%clk 0:01:42]} 29. Rxb5 {[%clk 0:00:50]}  Rc7 {[%clk 0:01:41]} 30. Rxb2 {[%clk 0:00:49]}  Rc3 {[%clk 0:01:42]} 31. Kf2 {[%clk 0:00:49]}  Kf7 {[%clk 0:01:43]} 32. Nf3 {[%clk 0:00:49]}  Rc7 {[%clk 0:01:42]} 33. Ne5+ {[%clk 0:00:49]}  Kf6 {[%clk 0:01:43]} 34. Kf3 {[%clk 0:00:48]}  Ra7 {[%clk 0:01:43]} 35. g3 {[%clk 0:00:46]}  h5 {[%clk 0:01:42]} 36. h4 {[%clk 0:00:46]}  Ra1 {[%clk 0:01:39]} 37. Nd3 {[%clk 0:00:43]}  Rd1 {[%clk 0:01:39]} 38. Nf4 {[%clk 0:00:42]}  Rf1+ {[%clk 0:01:38]} 39. Rf2 {[%clk 0:00:43]}  Re1 {[%clk 0:01:38]} 40. Nxh5+ {[%clk 0:00:42]}  Kg6 {[%clk 0:01:38]} 41. Nf4+ {[%clk 0:00:43]}  Kf6 {[%clk 0:01:39]} 42. Ra2 {[%clk 0:00:40]}  Rf1+ {[%clk 0:01:36]} 43. Kg2 {[%clk 0:00:40]}  Re1 {[%clk 0:01:36]} 44. Kf2 {[%clk 0:00:41]}  Ra1 {[%clk 0:01:32]} 45. Rxa1 {[%clk 0:00:41]} 1-0


[Site "https://www.chess.com"]

[Event "Titled Tuesday Blitz November 29 Late 2022"]
[White "Lewtak, Damian"]
[Black "Hambleton, Aman"]
[WhiteFideId "1141724"]
[BlackFideId "2606577"]
[WhiteElo "2329"]
[BlackElo "2538"]
[Result "1-0"]
[Round "09"]
[TimeControl "180+1"]
[Date "2022.11.30"]
[WhiteClock "0:00:03"]
[BlackClock "0:00:01"]

1. e4 {[%clk 0:02:57]}  c5 {[%clk 0:03:00]} 2. Nf3 {[%clk 0:02:57]}  e6 {[%clk 0:03:00]} 3. d4 {[%clk 0:02:55]}  cxd4 {[%clk 0:03:01]} 4. Nxd4 {[%clk 0:02:56]}  Nc6 {[%clk 0:03:02]} 5. Nxc6 {[%clk 0:02:56]}  bxc6 {[%clk 0:03:02]} 6. Bd3 {[%clk 0:02:56]}  d5 {[%clk 0:03:03]} 7. O-O {[%clk 0:02:57]}  Bd6 {[%clk 0:03:04]} 8. c4 {[%clk 0:02:57]}  Nf6 {[%clk 0:02:16]} 9. cxd5 {[%clk 0:02:56]}  cxd5 {[%clk 0:02:16]} 10. Bg5 {[%clk 0:02:46]}  dxe4 {[%clk 0:02:09]} 11. Bxe4 {[%clk 0:02:42]}  Rb8 {[%clk 0:01:41]} 12. Bc6+ {[%clk 0:02:36]}  Ke7 {[%clk 0:01:40]} 13. Nc3 {[%clk 0:02:29]}  Qc7 {[%clk 0:01:31]} 14. Qf3 {[%clk 0:02:03]}  Rb6 {[%clk 0:00:33]} 15. Ba8 {[%clk 0:01:42]}  h6 {[%clk 0:00:14]} 16. Bxf6+ {[%clk 0:01:38]}  gxf6 {[%clk 0:00:14]} 17. Rfe1 {[%clk 0:01:38]}  Bxh2+ {[%clk 0:00:10]} 18. Kh1 {[%clk 0:01:38]}  Be5 {[%clk 0:00:11]} 19. Ne4 {[%clk 0:01:20]}  Bb7 {[%clk 0:00:08]} 20. Rac1 {[%clk 0:01:17]}  Qb8 {[%clk 0:00:08]} 21. Bxb7 {[%clk 0:01:13]}  Qxb7 {[%clk 0:00:09]} 22. Qa3+ {[%clk 0:01:11]}  Rb4 {[%clk 0:00:04]} 23. Nc5 {[%clk 0:01:01]}  Rh4+ {[%clk 0:00:04]} 24. Kg1 {[%clk 0:00:57]}  Bh2+ {[%clk 0:00:04]} 25. Kf1 {[%clk 0:00:56]}  Qb5+ {[%clk 0:00:05]} 26. Nd3+ {[%clk 0:00:54]}  Kd7 {[%clk 0:00:04]} 27. Re2 {[%clk 0:00:43]}  Bb8 {[%clk 0:00:02]} 28. Nc5+ {[%clk 0:00:32]}  Ke8 {[%clk 0:00:02]} 29. g3 {[%clk 0:00:20]}  Rc4 {[%clk 0:00:02]} 30. Rxc4 {[%clk 0:00:17]}  Qxc4 {[%clk 0:00:03]} 31. Ne4 {[%clk 0:00:15]}  f5 {[%clk 0:00:02]} 32. Nf6+ {[%clk 0:00:14]}  Kd8 {[%clk 0:00:02]} 33. b3 {[%clk 0:00:05]}  Qb5 {[%clk 0:00:01]} 34. Ke1 {[%clk 0:00:04]}  Kc8 {[%clk 0:00:01]} 35. Qe7 {[%clk 0:00:03]} 1-0


[Site "https://www.chess.com"]

[Event "Titled Tuesday Blitz November 29 Late 2022"]
[White "Maksimovic, Bojan"]
[Black "Svane, Frederik"]
[WhiteFideId "14408120"]
[BlackFideId "12923044"]
[WhiteElo "2447"]
[BlackElo "2466"]
[Result "1/2-1/2"]
[Round "09"]
[TimeControl "180+1"]
[Date "2022.11.30"]
[WhiteClock "0:00:09"]
[BlackClock "0:00:24"]

1. e4 {[%clk 0:03:00]}  e5 {[%clk 0:02:58]} 2. Nf3 {[%clk 0:03:00]}  Nc6 {[%clk 0:02:58]} 3. Bb5 {[%clk 0:03:00]}  Nf6 {[%clk 0:02:58]} 4. O-O {[%clk 0:03:00]}  Nxe4 {[%clk 0:02:59]} 5. Re1 {[%clk 0:03:01]}  Nd6 {[%clk 0:02:59]} 6. Nxe5 {[%clk 0:03:01]}  Be7 {[%clk 0:02:59]} 7. Bf1 {[%clk 0:03:01]}  Nxe5 {[%clk 0:03:00]} 8. Rxe5 {[%clk 0:03:02]}  O-O {[%clk 0:03:00]} 9. d4 {[%clk 0:03:03]}  Bf6 {[%clk 0:03:01]} 10. Re1 {[%clk 0:03:02]}  Re8 {[%clk 0:03:01]} 11. c3 {[%clk 0:03:02]}  Rxe1 {[%clk 0:02:52]} 12. Qxe1 {[%clk 0:03:03]}  Nf5 {[%clk 0:02:51]} 13. a4 {[%clk 0:03:00]}  d5 {[%clk 0:02:50]} 14. Nd2 {[%clk 0:02:56]}  c6 {[%clk 0:02:48]} 15. a5 {[%clk 0:02:54]}  Be7 {[%clk 0:02:43]} 16. Nf3 {[%clk 0:02:50]}  Bd6 {[%clk 0:02:42]} 17. Bd3 {[%clk 0:02:41]}  a6 {[%clk 0:02:39]} 18. Bd2 {[%clk 0:02:18]}  Be6 {[%clk 0:02:18]} 19. Ng5 {[%clk 0:02:13]}  Bd7 {[%clk 0:02:10]} 20. g4 {[%clk 0:01:47]}  h6 {[%clk 0:02:09]} 21. gxf5 {[%clk 0:01:13]}  hxg5 {[%clk 0:02:08]} 22. Qe2 {[%clk 0:01:13]}  Qf6 {[%clk 0:01:44]} 23. Qg4 {[%clk 0:01:08]}  Be7 {[%clk 0:01:41]} 24. Re1 {[%clk 0:00:53]}  Re8 {[%clk 0:01:27]} 25. Qg3 {[%clk 0:00:43]}  Bxf5 {[%clk 0:00:49]} 26. Bxg5 {[%clk 0:00:36]}  Qg6 {[%clk 0:00:32]} 27. Bxf5 {[%clk 0:00:32]}  Qxf5 {[%clk 0:00:32]} 28. Bxe7 {[%clk 0:00:32]}  Qd7 {[%clk 0:00:23]} 29. Qe5 {[%clk 0:00:31]}  f6 {[%clk 0:00:23]} 30. Qe2 {[%clk 0:00:30]}  Kf7 {[%clk 0:00:23]} 31. Qh5+ {[%clk 0:00:27]}  Kg8 {[%clk 0:00:24]} 32. Qe2 {[%clk 0:00:18]}  Kf7 {[%clk 0:00:24]} 33. Qh5+ {[%clk 0:00:15]}  Kg8 {[%clk 0:00:24]} 34. Qe2 {[%clk 0:00:09]} 1/2-1/2


[Site "https://www.chess.com"]

[Event "Titled Tuesday Blitz November 29 Late 2022"]
[White "Manelyuk, Daniil"]
[Black "Przybylski, Wojciech"]
[WhiteFideId "44173920"]
[BlackFideId "1117599"]
[WhiteElo "2209"]
[BlackElo "2221"]
[Result "0-1"]
[Round "09"]
[TimeControl "180+1"]
[Date "2022.11.30"]
[WhiteClock "0:00:13"]
[BlackClock "0:00:12"]

1. e4 {[%clk 0:03:00]}  e5 {[%clk 0:02:58]} 2. Nf3 {[%clk 0:03:00]}  Nc6 {[%clk 0:02:56]} 3. Bb5 {[%clk 0:03:00]}  Nf6 {[%clk 0:02:55]} 4. O-O {[%clk 0:02:55]}  Nxe4 {[%clk 0:02:55]} 5. d4 {[%clk 0:02:55]}  Nd6 {[%clk 0:02:54]} 6. dxe5 {[%clk 0:02:55]}  Nxb5 {[%clk 0:02:54]} 7. a4 {[%clk 0:02:56]}  Nbd4 {[%clk 0:02:52]} 8. Nxd4 {[%clk 0:02:56]}  d5 {[%clk 0:02:52]} 9. f4 {[%clk 0:02:24]}  Nxd4 {[%clk 0:02:49]} 10. Qxd4 {[%clk 0:02:25]}  c5 {[%clk 0:02:49]} 11. Qd3 {[%clk 0:02:24]}  c4 {[%clk 0:02:41]} 12. Qe2 {[%clk 0:02:09]}  Bf5 {[%clk 0:02:14]} 13. Be3 {[%clk 0:01:41]}  d4 {[%clk 0:02:00]} 14. Rd1 {[%clk 0:01:36]}  d3 {[%clk 0:01:52]} 15. cxd3 {[%clk 0:01:33]}  Bxd3 {[%clk 0:01:49]} 16. Qf3 {[%clk 0:01:33]}  Qc7 {[%clk 0:01:40]} 17. Nc3 {[%clk 0:01:33]}  Bc5 {[%clk 0:01:27]} 18. Nd5 {[%clk 0:01:17]}  Qc6 {[%clk 0:01:25]} 19. Bxc5 {[%clk 0:01:12]}  Qxc5+ {[%clk 0:01:21]} 20. Kh1 {[%clk 0:01:13]}  Rd8 {[%clk 0:01:01]} 21. Ne3 {[%clk 0:01:08]}  O-O {[%clk 0:00:58]} 22. Rac1 {[%clk 0:01:07]}  Rd4 {[%clk 0:00:33]} 23. Ng4 {[%clk 0:00:57]}  Rfd8 {[%clk 0:00:29]} 24. f5 {[%clk 0:00:51]}  Be4 {[%clk 0:00:24]} 25. Nf6+ {[%clk 0:00:18]}  gxf6 {[%clk 0:00:23]} 26. Qg4+ {[%clk 0:00:13]}  Kf8 {[%clk 0:00:21]} 27. Rxd4 {[%clk 0:00:12]}  Qxd4 {[%clk 0:00:19]} 28. exf6 {[%clk 0:00:13]}  Qxf6 {[%clk 0:00:11]} 29. Qxe4 {[%clk 0:00:13]}  Qg5 {[%clk 0:00:11]} 30. Re1 {[%clk 0:00:11]}  Kg7 {[%clk 0:00:10]} 31. Qe5+ {[%clk 0:00:09]}  Qf6 {[%clk 0:00:10]} 32. Qf4 {[%clk 0:00:09]}  Rc8 {[%clk 0:00:09]} 33. Qg4+ {[%clk 0:00:09]}  Kh8 {[%clk 0:00:09]} 34. h3 {[%clk 0:00:09]}  a6 {[%clk 0:00:09]} 35. Rd1 {[%clk 0:00:09]}  b5 {[%clk 0:00:09]} 36. axb5 {[%clk 0:00:08]}  axb5 {[%clk 0:00:09]} 37. Rd7 {[%clk 0:00:09]}  Rg8 {[%clk 0:00:09]} 38. Qh5 {[%clk 0:00:08]}  Qxb2 {[%clk 0:00:07]} 39. Qf3 {[%clk 0:00:06]}  Qf6 {[%clk 0:00:06]} 40. Rb7 {[%clk 0:00:06]}  c3 {[%clk 0:00:06]} 41. Rxb5 {[%clk 0:00:06]}  c2 {[%clk 0:00:06]} 42. Rc5 {[%clk 0:00:06]}  Qa1+ {[%clk 0:00:06]} 43. Kh2 {[%clk 0:00:05]}  c1=Q {[%clk 0:00:06]} 44. Rxc1 {[%clk 0:00:05]}  Qxc1 {[%clk 0:00:06]} 45. f6 {[%clk 0:00:06]}  Qg5 {[%clk 0:00:05]} 46. g3 {[%clk 0:00:03]}  Qg6 {[%clk 0:00:05]} 47. Qf4 {[%clk 0:00:03]}  h6 {[%clk 0:00:06]} 48. h4 {[%clk 0:00:03]}  Kh7 {[%clk 0:00:06]} 49. Kh3 {[%clk 0:00:04]}  Re8 {[%clk 0:00:06]} 50. g4 {[%clk 0:00:03]}  Rd8 {[%clk 0:00:06]} 51. g5 {[%clk 0:00:03]}  Qd3+ {[%clk 0:00:06]} 52. Kg4 {[%clk 0:00:03]}  Rd4 {[%clk 0:00:05]} 53. h5 {[%clk 0:00:03]}  Rxf4+ {[%clk 0:00:05]} 54. Kxf4 {[%clk 0:00:04]}  Qd4+ {[%clk 0:00:06]} 55. Kf3 {[%clk 0:00:04]}  Qd3+ {[%clk 0:00:06]} 56. Kf2 {[%clk 0:00:05]}  Qd2+ {[%clk 0:00:06]} 57. Kf1 {[%clk 0:00:05]}  Qxg5 {[%clk 0:00:06]} 58. Kf2 {[%clk 0:00:06]}  Qxh5 {[%clk 0:00:06]} 59. Ke1 {[%clk 0:00:07]}  Qf5 {[%clk 0:00:07]} 60. Kd1 {[%clk 0:00:07]}  Qxf6 {[%clk 0:00:07]} 61. Kc1 {[%clk 0:00:08]}  Qf2 {[%clk 0:00:07]} 62. Kb1 {[%clk 0:00:08]}  Kg6 {[%clk 0:00:08]} 63. Ka1 {[%clk 0:00:09]}  Kf5 {[%clk 0:00:09]} 64. Kb1 {[%clk 0:00:10]}  Ke4 {[%clk 0:00:10]} 65. Kc1 {[%clk 0:00:11]}  Kd3 {[%clk 0:00:11]} 66. Kb1 {[%clk 0:00:12]}  Kc3 {[%clk 0:00:12]} 67. Ka1 {[%clk 0:00:13]}  Qb2# {[%clk 0:00:12]} 0-1


[Site "https://www.chess.com"]

[Event "Titled Tuesday Blitz November 29 Late 2022"]
[White "Nakamura, Hikaru"]
[Black "Jobava, Baadur"]
[WhiteFideId "2016192"]
[BlackFideId "13601520"]
[WhiteElo "2909"]
[BlackElo "2582"]
[Result "1-0"]
[Round "09"]
[TimeControl "180+1"]
[Date "2022.11.30"]
[WhiteClock "0:00:18"]
[BlackClock "0:00:03"]

1. e4 {[%clk 0:02:59]}  d6 {[%clk 0:02:54]} 2. d4 {[%clk 0:02:59]}  Nf6 {[%clk 0:02:55]} 3. Nc3 {[%clk 0:02:59]}  e5 {[%clk 0:02:56]} 4. Nf3 {[%clk 0:03:00]}  Nbd7 {[%clk 0:02:55]} 5. Bc4 {[%clk 0:03:00]}  Be7 {[%clk 0:02:56]} 6. O-O {[%clk 0:03:00]}  O-O {[%clk 0:02:56]} 7. a4 {[%clk 0:02:58]}  a5 {[%clk 0:02:57]} 8. Qe2 {[%clk 0:02:57]}  c6 {[%clk 0:02:52]} 9. Rd1 {[%clk 0:02:57]}  Qc7 {[%clk 0:02:52]} 10. h3 {[%clk 0:02:57]}  h6 {[%clk 0:02:49]} 11. Be3 {[%clk 0:02:53]}  Re8 {[%clk 0:02:46]} 12. d5 {[%clk 0:02:51]}  Nf8 {[%clk 0:02:37]} 13. Qd2 {[%clk 0:02:41]}  Ng6 {[%clk 0:02:21]} 14. Bf1 {[%clk 0:02:41]}  Bd7 {[%clk 0:02:14]} 15. Ra3 {[%clk 0:02:40]}  Rec8 {[%clk 0:01:59]} 16. Rb3 {[%clk 0:02:38]}  Be8 {[%clk 0:01:52]} 17. Bb6 {[%clk 0:02:34]}  Qd7 {[%clk 0:01:42]} 18. Qe1 {[%clk 0:02:31]}  Bd8 {[%clk 0:01:38]} 19. Be3 {[%clk 0:02:29]}  Qe7 {[%clk 0:01:37]} 20. Nd2 {[%clk 0:02:06]}  cxd5 {[%clk 0:01:21]} 21. exd5 {[%clk 0:02:07]}  Rxc3 {[%clk 0:01:18]} 22. Rxc3 {[%clk 0:02:08]}  Nxd5 {[%clk 0:01:17]} 23. Ra3 {[%clk 0:02:08]}  Nxe3 {[%clk 0:01:05]} 24. Qxe3 {[%clk 0:02:05]}  d5 {[%clk 0:01:05]} 25. c3 {[%clk 0:02:00]}  Bc6 {[%clk 0:01:01]} 26. Bb5 {[%clk 0:01:59]}  Nf4 {[%clk 0:00:58]} 27. Nf3 {[%clk 0:01:46]}  Bc7 {[%clk 0:00:57]} 28. g3 {[%clk 0:01:31]}  Nxh3+ {[%clk 0:00:52]} 29. Kg2 {[%clk 0:01:31]}  Ng5 {[%clk 0:00:50]} 30. Bxc6 {[%clk 0:01:30]}  bxc6 {[%clk 0:00:50]} 31. Nxg5 {[%clk 0:01:30]}  hxg5 {[%clk 0:00:50]} 32. Rb3 {[%clk 0:01:31]}  Bd6 {[%clk 0:00:48]} 33. c4 {[%clk 0:01:21]}  Bc5 {[%clk 0:00:42]} 34. Qe2 {[%clk 0:01:09]}  Qe6 {[%clk 0:00:27]} 35. cxd5 {[%clk 0:00:35]}  cxd5 {[%clk 0:00:28]} 36. Qh5 {[%clk 0:00:35]}  g6 {[%clk 0:00:20]} 37. Qxg5 {[%clk 0:00:33]}  Be7 {[%clk 0:00:17]} 38. Qd2 {[%clk 0:00:28]}  d4 {[%clk 0:00:16]} 39. Rb5 {[%clk 0:00:27]}  Kg7 {[%clk 0:00:15]} 40. Rh1 {[%clk 0:00:20]}  Qc6+ {[%clk 0:00:12]} 41. f3 {[%clk 0:00:20]}  Bf6 {[%clk 0:00:09]} 42. Qh6+ {[%clk 0:00:17]}  Kg8 {[%clk 0:00:09]} 43. Rc1 {[%clk 0:00:18]}  Qe6 {[%clk 0:00:08]} 44. Qh3 {[%clk 0:00:17]}  Qe7 {[%clk 0:00:02]} 45. Rc8+ {[%clk 0:00:15]}  Rxc8 {[%clk 0:00:02]} 46. Qxc8+ {[%clk 0:00:16]}  Kh7 {[%clk 0:00:02]} 47. Rb8 {[%clk 0:00:16]}  e4 {[%clk 0:00:01]} 48. Qe8 {[%clk 0:00:15]}  exf3+ {[%clk 0:00:01]} 49. Kxf3 {[%clk 0:00:16]}  Qd6 {[%clk 0:00:01]} 50. Qxf7+ {[%clk 0:00:16]}  Kh6 {[%clk 0:00:01]} 51. Qf8+ {[%clk 0:00:16]}  Qxf8 {[%clk 0:00:01]} 52. Rxf8 {[%clk 0:00:17]}  Kg5 {[%clk 0:00:02]} 53. Ra8 {[%clk 0:00:17]}  d3 {[%clk 0:00:02]} 54. Rxa5+ {[%clk 0:00:17]}  Kh6 {[%clk 0:00:03]} 55. Rd5 {[%clk 0:00:18]}  Bxb2 {[%clk 0:00:02]} 56. Rxd3 {[%clk 0:00:18]}  Be5 {[%clk 0:00:03]} 57. a5 {[%clk 0:00:18]} 1-0


[Site "https://www.chess.com"]